bitfinex/quotes_BTCUSD_20241025
["timestamp","ask_amount","ask_price","bid_price","bid_amount"]
[1729898566649,0.15050381,65834.0,65832.0,0.0015]
[1729898566868,0.35967676,65836.0,65832.0,0.0015]
[1729898566869,1.60703323,65833.0,65832.0,0.0015]
[1729898567115,0.156915,65826.0,65808.0,0.22657412]
[1729898567316,1.86221081,65826.0,65808.0,0.22657412]
[1729898567588,0.005,65819.0,65801.0,0.0050608]
[1729898567817,1.85579962,65826.0,65801.0,0.0050608]
[1729898567818,0.005,65813.0,65801.0,0.37860592]
[1729898568061,0.005,65813.0,65800.0,0.08637499]
[1729898568062,0.15050381,65805.0,65800.0,0.08025078]
[1729898568279,0.15050381,65805.0,65800.0,0.00061993]
[1729898568494,0.22657412,65803.0,65800.0,0.00061993]
[1729898568709,0.01343007,65804.0,65800.0,0.00061993]
[1729898568710,0.01343007,65802.0,65800.0,0.00061993]
[1729898568947,0.15050381,65801.0,65800.0,0.00061993]
[1729898569156,0.23895236,65801.0,65800.0,0.00061993]
[1729898569811,0.25235595,65801.0,65800.0,0.00061993]
[1729898570037,0.39089888,65801.0,65800.0,0.00061993]
[1729898570264,0.17220561,65800.0,65793.0,0.0175053]
[1729898570473,0.51018057,65795.0,65793.0,0.0175053]
[1729898570687,1.92798797,65795.0,65793.0,0.0175053]
[1729898570904,1.4178074,65795.0,65793.0,0.0175053]
[1729898571119,0.22657412,65818.0,65795.0,0.005]
[1729898571120,1.2539,65812.0,65795.0,0.005]
[1729898571349,0.22657412,65818.0,65795.0,0.005]
[1729898571350,0.22657412,65807.0,65806.0,0.151961]
[1729898571585,0.22657412,65818.0,65817.0,0.151936]
[1729898572020,1.2539,65832.0,65819.0,0.303863]
[1729898572235,0.17316122,65824.0,65823.0,0.151922]
[1729898572453,0.21130681,65824.0,65823.0,0.151922]
[1729898572676,0.21130681,65824.0,65817.0,0.005]
[1729898572924,0.21130681,65824.0,65814.0,0.003]
[1729898572925,0.005,65821.0,65814.0,0.003]
[1729898573135,0.15050381,65820.0,65814.0,0.003]
[1729898573345,0.01335696,65819.0,65814.0,0.003]
[1729898573556,0.005,65821.0,65810.0,0.303903]
[1729898573557,0.16738989,65818.0,65815.0,0.003]
[1729898573773,0.060803,65824.0,65818.0,0.003]
[1729898574044,0.060803,65824.0,65821.0,0.005]
[1729898574045,0.37707793,65823.0,65821.0,0.005]
[1729898574349,0.37707793,65823.0,65808.0,0.005]
[1729898574350,0.005,65809.0,65794.0,0.000859]
[1729898574564,0.37943948,65823.0,65811.0,0.00263845]
[1729898574565,0.01333831,65819.0,65811.0,0.00263845]
[1729898574793,0.01333831,65819.0,65801.0,0.000821]
[1729898574794,0.00236155,65809.0,65801.0,0.000821]
[1729898575022,0.01333831,65822.0,65801.0,0.000821]
[1729898575023,0.15050381,65808.0,65802.0,0.53051612]
[1729898575235,0.15050381,65808.0,65807.0,0.156957]
[1729898575474,0.22657412,65817.0,65805.0,0.00763845]
[1729898575677,0.22657412,65817.0,65809.0,0.00263845]
[1729898575885,0.22657412,65817.0,65807.0,0.00263845]
[1729898575886,0.15050381,65816.0,65807.0,0.00263845]
[1729898576105,0.15050381,65816.0,65808.0,0.005]
[1729898576338,0.15050381,65816.0,65814.0,0.156941]
[1729898576557,0.001642,65818.0,65817.0,0.15957445]
[1729898576775,0.001642,65818.0,65817.0,0.20592069]
[1729898577001,0.060803,65824.0,65823.0,0.16456045]
[1729898577249,0.22657412,65855.0,65840.0,0.16452145]
[1729898577468,0.22657412,65855.0,65840.0,0.17452145]
[1729898577690,0.22657412,65855.0,65840.0,0.17391438]
[1729898577909,0.22657412,65855.0,65847.0,0.00703138]
[1729898578128,0.00395367,65841.0,65839.0,0.151885]
[1729898578339,0.00395367,65841.0,65831.0,0.22657412]
[1729898578340,0.00176544,65839.0,65831.0,0.22657412]
[1729898578755,0.00176544,65839.0,65838.0,0.151887]
[1729898579280,0.00176544,65839.0,65832.0,0.303803]
[1729898579281,0.15226925,65839.0,65832.0,0.151899]
[1729898579468,0.15050381,65838.0,65826.0,0.303831]
[1729898579676,0.15050381,65838.0,65828.0,0.22657412]
[1729898579887,0.15050381,65838.0,65823.0,0.0832]
[1729898580112,0.15050381,65838.0,65828.0,0.22657412]
[1729898580326,0.00176544,65839.0,65828.0,0.22657412]
[1729898580327,0.00176544,65839.0,65838.0,0.151887]
[1729898580579,0.00176544,65839.0,65838.0,0.51656376]
[1729898580793,0.22641856,65847.0,65846.0,0.151869]
[1729898581015,0.22641856,65847.0,65840.0,0.303765]
[1729898581016,0.37692237,65847.0,65823.0,0.0882]
[1729898581225,0.15050381,65846.0,65832.0,0.22657412]
[1729898581443,0.01,65859.0,65832.0,0.22657412]
[1729898581444,0.22657412,65854.0,65846.0,0.151867]
[1729898581683,0.22657412,65854.0,65837.0,0.303778]
[1729898581684,0.22657412,65847.0,65837.0,0.005]
[1729898581934,0.22657412,65846.0,65832.0,0.53037312]
[1729898582143,0.15050381,65845.0,65838.0,0.151886]
[1729898582359,0.15050381,65845.0,65833.0,0.22657412]
[1729898582360,0.22657412,65844.0,65835.0,0.151894]
[1729898582571,0.15050381,65843.0,65834.0,0.22657412]
[1729898582831,0.15050381,65843.0,65828.0,0.005]
[1729898582832,0.22657412,65854.0,65831.0,0.005]
[1729898583065,0.22657412,65854.0,65823.0,0.0832]
[1729898583066,0.22657412,65845.0,65827.0,0.303826]
[1729898583285,0.68082793,65844.0,65827.0,0.22657412]
[1729898583506,0.37707793,65844.0,65826.0,0.303831]
[1729898583736,0.303752,65843.0,65824.0,0.151919]
[1729898583969,0.303752,65843.0,65812.0,0.005]
[1729898583970,0.303799,65833.0,65810.0,0.0817]
[1729898584183,0.15050381,65832.0,65821.0,0.22657412]
[1729898584430,0.15050381,65832.0,65810.0,0.385601]
[1729898584640,0.15050381,65832.0,65821.0,0.22657412]
[1729898584871,0.15050381,65832.0,65817.0,0.151934]
[1729898584872,0.03770779,65831.0,65817.0,0.151934]
[1729898585085,0.03770779,65831.0,65810.0,0.0817]
[1729898585086,0.22657412,65822.0,65810.0,0.0817]
[1729898585312,0.22657412,65829.0,65800.0,0.23157412]
[1729898585313,0.15050381,65821.0,65804.0,0.151965]
[1729898585541,0.15050381,65821.0,65816.0,0.22657412]
[1729898585758,0.22657412,65820.0,65800.0,0.22657412]
[1729898585962,0.22657412,65820.0,65798.0,0.22657412]
[1729898585963,0.37707793,65818.0,65798.0,0.22657412]
[1729898586180,0.15050381,65814.0,65805.0,0.22657412]
[1729898586386,0.151957,65808.0,65794.0,0.000859]
[1729898586612,0.16569951,65807.0,65802.0,0.22657412]
[1729898586829,0.15050381,65807.0,65803.0,0.22657412]
[1729898587053,0.15050381,65807.0,65800.0,0.151975]
[1729898587267,0.15050381,65807.0,65794.0,0.000859]
[1729898587481,0.22657412,65818.0,65794.0,0.000859]
[1729898587482,0.22657412,65818.0,65804.0,0.303932]
[1729898587694,0.22657412,65818.0,65794.0,0.000859]
[1729898587695,0.22657412,65808.0,65794.0,0.000859]
[1729898587916,0.303848,65823.0,65794.0,0.000859]
[1729898587917,0.303805,65832.0,65804.0,0.22657412]
[1729898588138,0.001642,65814.0,65813.0,0.005]
[1729898588366,0.001642,65814.0,65813.0,0.248645]
[1729898588581,0.22657412,65836.0,65813.0,0.248645]
[1729898588582,0.22657412,65836.0,65827.0,0.151913]
[1729898589239,0.22657412,65836.0,65820.0,0.005]
[1729898589240,0.22657412,65836.0,65820.0,0.015]
[1729898589519,0.22657412,65829.0,65816.0,0.303877]
[1729898589749,0.22657412,65829.0,65814.0,0.303886]
[1729898589750,0.18663984,65828.0,65814.0,0.303886]
[1729898589957,0.22657412,65827.0,65813.0,0.0817]
[1729898590168,0.22657412,65827.0,65801.0,0.010821]
[1729898590169,0.22657412,65820.0,65801.0,0.000821]
[1729898590393,0.15050381,65824.0,65806.0,0.22657412]
[1729898590394,0.16398342,65819.0,65806.0,0.22657412]
[1729898590607,0.16398342,65819.0,65801.0,0.000821]
[1729898590608,0.02987795,65818.0,65801.0,0.000821]
[1729898590816,0.16398342,65817.0,65805.0,0.22657412]
[1729898591029,0.01347961,65816.0,65808.0,0.151956]
[1729898591248,0.22657412,65813.0,65801.0,0.000821]
[1729898591480,0.15050381,65802.0,65801.0,0.000821]
[1729898591694,0.32095442,65802.0,65801.0,0.000821]
[1729898591914,0.32676615,65802.0,65801.0,0.000821]
[1729898592130,0.17479515,65802.0,65801.0,0.000821]
[1729898592347,0.30247481,65802.0,65801.0,0.000821]
[1729898592571,0.32683855,65802.0,65801.0,0.000821]
[1729898592827,0.69351531,65802.0,65801.0,0.000821]
[1729898593056,0.158987,65795.0,65794.0,0.000859]
[1729898593285,0.30749081,65795.0,65794.0,0.000859]
[1729898593706,0.34917451,65795.0,65794.0,0.000859]
[1729898593923,0.17486441,65795.0,65794.0,0.000859]
[1729898594142,0.32685141,65795.0,65794.0,0.000859]
[1729898594359,0.32536822,65795.0,65794.0,0.000859]
[1729898594615,0.17486441,65795.0,65794.0,0.000859]
[1729898595050,0.01353367,65795.0,65794.0,0.152848]
[1729898595271,0.01353367,65795.0,65794.0,0.000859]
[1729898595512,0.16403748,65795.0,65794.0,0.000859]
[1729898595724,0.18044123,65795.0,65794.0,0.000859]
[1729898595940,0.16403748,65795.0,65794.0,0.000859]
[1729898596157,0.66360076,65806.0,65794.0,0.000859]
[1729898596158,0.22657412,65821.0,65803.0,0.0774]
[1729898596381,0.22657412,65809.0,65803.0,0.0774]
[1729898596608,0.15050381,65808.0,65795.0,0.22657412]
[1729898597036,0.15050381,65808.0,65793.0,0.0133643]
[1729898597037,0.35967676,65797.0,65793.0,0.0133643]
[1729898597247,0.16133435,65796.0,65793.0,0.0133643]
[1729898597495,0.30249281,65794.0,65793.0,0.0133643]
[1729898597706,0.3456453,65794.0,65793.0,0.0133643]
[1729898597923,1.58222335,65794.0,65793.0,0.0133643]
[1729898598165,1.74504911,65794.0,65793.0,0.0133643]
[1729898598404,0.46799662,65794.0,65793.0,0.0133643]
[1729898598627,0.46799662,65794.0,65793.0,0.00717528]
[1729898598628,0.72269874,65794.0,65793.0,0.00717528]
[1729898598859,0.72269874,65794.0,65777.0,0.02239737]
[1729898598860,0.152026,65778.0,65777.0,0.02239737]
[1729898599069,0.15050381,65778.0,65777.0,0.01999758]
[1729898599510,0.16132128,65778.0,65777.0,0.01999758]
[1729898599769,0.15050381,65778.0,65777.0,0.01999758]
[1729898600172,0.15050381,65778.0,65777.0,0.17202558]
[1729898600382,0.22657412,65786.0,65777.0,0.01999758]
[1729898600601,0.22657412,65779.0,65777.0,0.01999758]
[1729898600814,0.22657412,65786.0,65777.0,0.01999758]
[1729898600815,0.17316122,65778.0,65777.0,0.01999758]
[1729898601245,0.15050381,65778.0,65777.0,0.17202558]
[1729898601458,0.23157412,65793.0,65777.0,0.17202558]
[1729898601459,0.22657412,65793.0,65777.0,0.01999758]
[1729898601671,0.22657412,65778.0,65777.0,0.01999758]
[1729898601900,0.15050381,65778.0,65777.0,0.01999758]
[1729898602120,0.18075569,65778.0,65777.0,0.01999758]
[1729898602354,0.30252981,65778.0,65777.0,0.01999758]
[1729898602565,0.31332715,65778.0,65777.0,0.01999758]
[1729898603226,0.31832715,65778.0,65777.0,0.01999758]
[1729898603440,0.33990943,65778.0,65777.0,0.01999758]
[1729898603679,0.18288343,65778.0,65777.0,0.01999758]
[1729898603896,0.17208609,65778.0,65777.0,0.01999758]
[1729898604324,0.30252981,65778.0,65777.0,0.01999758]
[1729898604545,0.32911143,65778.0,65777.0,0.01999758]
[1729898604769,0.18287292,65778.0,65777.0,0.01999758]
[1729898604983,0.18287292,65778.0,65777.0,0.17202558]
[1729898605198,0.23157412,65793.0,65777.0,0.17202558]
[1729898605199,0.22657412,65793.0,65777.0,0.17202558]
[1729898605425,0.22657412,65793.0,65781.0,0.304039]
[1729898605426,0.02247191,65788.0,65781.0,0.304039]
[1729898605648,0.17207685,65792.0,65791.0,0.156996]
[1729898605649,0.01078794,65792.0,65791.0,0.156996]
[1729898605902,0.02158259,65808.0,65803.0,0.151968]
[1729898606179,0.36467676,65824.0,65812.0,0.151947]
[1729898606180,0.02158259,65813.0,65812.0,0.151947]
[1729898606390,0.02247191,65829.0,65813.0,0.151945]
[1729898606600,0.02247191,65829.0,65810.0,0.3089]
[1729898606601,0.02158795,65823.0,65820.0,0.151929]
[1729898606829,0.58625088,65821.0,65809.0,0.005]
[1729898607045,0.02158795,65827.0,65789.0,0.079]
[1729898607046,0.39866588,65820.0,65801.0,0.005]
[1729898607261,0.15050381,65818.0,65802.0,0.22657412]
[1729898607477,0.22657412,65820.0,65792.0,0.23157412]
[1729898607478,0.22657412,65813.0,65792.0,0.23157412]
[1729898607696,0.15050381,65817.0,65792.0,0.23157412]
[1729898607697,0.15050381,65811.0,65799.0,0.22657412]
[1729898607914,0.303876,65817.0,65805.0,0.005]
[1729898607915,0.15050381,65808.0,65805.0,0.005]
[1729898608120,0.15050381,65808.0,65794.0,0.303979]
[1729898608121,0.15050381,65808.0,65801.0,0.303944]
[1729898608345,0.22657412,65806.0,65798.0,0.303956]
[1729898608614,0.22657412,65806.0,65783.0,0.1879]
[1729898608615,0.22657412,65799.0,65783.0,0.1879]
[1729898608834,0.22657412,65799.0,65790.0,0.22657412]
[1729898608835,0.15050381,65793.0,65790.0,0.22657412]
[1729898609056,0.03509439,65792.0,65783.0,0.22657412]
[1729898609285,0.15050381,65793.0,65777.0,0.01999758]
[1729898609286,0.03509439,65791.0,65777.0,0.01999758]
[1729898609527,0.15050381,65793.0,65777.0,0.01999758]
[1729898609528,0.24007374,65790.0,65777.0,0.01999758]
[1729898609775,0.03510044,65789.0,65777.0,0.01999758]
[1729898610066,0.02250028,65786.0,65779.0,0.22657412]
[1729898610300,1.48047412,65799.0,65777.0,0.32405258]
[1729898610301,0.01350017,65785.0,65777.0,0.01999758]
[1729898610536,0.01350017,65784.0,65781.0,0.304039]
[1729898610809,0.22657412,65799.0,65781.0,0.304039]
[1729898610810,0.22657412,65799.0,65792.0,0.151994]
[1729898610811,0.01350017,65793.0,65792.0,0.151994]
[1729898611052,0.01350017,65793.0,65770.0,4e-05]
[1729898611053,0.15050381,65793.0,65770.0,4e-05]
[1729898611302,0.15050381,65793.0,65762.0,0.23338846]
[1729898611303,0.182063,65762.0,65761.0,0.03046641]
[1729898611525,1.81993832,65762.0,65761.0,0.02528023]
[1729898611761,1.81993832,65762.0,65761.0,0.01469429]
[1729898611762,2.12722599,65762.0,65761.0,0.01469429]
[1729898611987,0.254168,65760.0,65759.0,0.37001954]
[1729898612201,0.254168,65760.0,65720.0,0.01580335]
[1729898612202,0.02,65724.0,65720.0,0.22657412]
[1729898612468,0.54366725,65724.0,65720.0,0.22657412]
[1729898612684,0.16399049,65724.0,65717.0,0.00086]
[1729898612892,0.16399049,65724.0,65718.0,0.060839]
[1729898613110,0.17897778,65724.0,65718.0,0.060839]
[1729898613314,0.17897778,65724.0,65717.0,0.00086]
[1729898613315,0.16550381,65724.0,65717.0,0.00086]
[1729898613768,0.18396469,65724.0,65717.0,0.00086]
[1729898613979,0.33611569,65724.0,65717.0,0.00086]
[1729898614218,0.167165,65718.0,65717.0,0.00086]
[1729898614442,0.32266881,65718.0,65717.0,0.00086]
[1729898614658,0.33610976,65718.0,65717.0,0.00086]
[1729898614871,0.38062928,65718.0,65717.0,0.00086]
[1729898615338,1.42284342,65718.0,65717.0,0.00086]
[1729898615545,0.17125516,65718.0,65717.0,0.00086]
[1729898615763,0.33109247,65718.0,65717.0,0.00086]
[1729898615977,0.432172,65715.0,65714.0,0.00153312]
[1729898616218,1.84999947,65715.0,65714.0,0.00153312]
[1729898616434,1.87147489,65715.0,65714.0,0.00153312]
[1729898617316,1.46496944,65715.0,65714.0,0.00153312]
[1729898617541,1.44352681,65715.0,65714.0,0.00153312]
[1729898617754,1.63211922,65715.0,65714.0,0.00153312]
[1729898617975,1.63211922,65715.0,65682.0,0.41447412]
[1729898617976,0.265,65701.0,65681.0,0.22657412]
[1729898618190,1.84000945,65701.0,65681.0,0.22657412]
[1729898618416,1.84000945,65701.0,65700.0,0.05723418]
[1729898618417,1.87142986,65701.0,65700.0,0.05723418]
[1729898618656,1.8809574,65701.0,65700.0,0.05723418]
[1729898618892,2.30195103,65701.0,65700.0,0.05723418]
[1729898619109,2.30195103,65701.0,65700.0,0.03883418]
[1729898619110,2.31264688,65701.0,65700.0,0.03883418]
[1729898619318,2.5889914,65701.0,65700.0,0.03883418]
[1729898619961,0.182209,65699.0,65669.0,0.0007]
[1729898620177,0.43223,65690.0,65689.0,0.03427251]
[1729898620381,0.70294921,65690.0,65689.0,0.03427251]
[1729898620600,0.35755586,65690.0,65689.0,0.00937032]
[1729898620809,0.35755586,65690.0,65669.0,0.22727412]
[1729898620810,0.015,65681.0,65680.0,0.32090479]
[1729898621028,0.16550381,65681.0,65680.0,0.32090479]
[1729898621283,0.54877996,65681.0,65680.0,0.32090479]
[1729898621475,0.67294937,65681.0,65680.0,0.32090479]
[1729898621687,0.35757686,65681.0,65680.0,0.30723663]
[1729898621901,0.81441495,65681.0,65680.0,0.2659157]
[1729898622113,0.45985721,65681.0,65680.0,0.24541373]
[1729898622338,0.35757686,65681.0,65680.0,0.24541373]
[1729898622612,0.45532586,65681.0,65680.0,0.24541373]
[1729898622838,1.61055223,65681.0,65680.0,0.24541373]
[1729898623073,0.17425345,65681.0,65680.0,0.24541373]
[1729898623305,0.1414314,65681.0,65680.0,0.48076673]
[1729898623512,0.00261341,65689.0,65688.0,0.152234]
[1729898623727,0.00261341,65689.0,65680.0,0.32851373]
[1729898623728,0.00261341,65689.0,65680.0,0.32933573]
[1729898623946,0.22657412,65684.0,65683.0,0.456738]
[1729898624158,0.00261341,65689.0,65685.0,0.15224]
[1729898624159,0.005,65686.0,65685.0,0.15224]
[1729898624374,0.005,65686.0,65680.0,0.32933573]
[1729898624375,0.15050381,65686.0,65680.0,0.32933573]
[1729898624622,0.15050381,65685.0,65680.0,0.32933573]
[1729898624842,0.005,65681.0,65680.0,0.32933573]
[1729898625132,0.15550381,65681.0,65680.0,0.24623573]
[1729898625489,1.67986367,65681.0,65680.0,0.24623573]
[1729898625703,1.70114722,65681.0,65680.0,0.24623573]
[1729898625923,1.71067938,65681.0,65680.0,0.24623573]
[1729898626125,1.8267661,65681.0,65680.0,0.24162231]
[1729898626356,1.80459662,65681.0,65680.0,0.24162231]
[1729898626581,1.69422567,65681.0,65680.0,0.24162231]
[1729898626797,1.72592411,65681.0,65680.0,0.24162231]
[1729898627006,1.45735965,65681.0,65680.0,0.24162231]
[1729898627221,0.20438428,65681.0,65680.0,0.24162231]
[1729898627431,0.18210657,65681.0,65680.0,0.24162231]
[1729898627686,0.18710657,65681.0,65680.0,0.24162231]
[1729898627906,0.18310657,65681.0,65680.0,0.24162231]
[1729898628108,0.15980801,65681.0,65680.0,0.24162231]
[1729898628336,0.15880801,65681.0,65680.0,0.24162231]
[1729898628565,0.15050381,65681.0,65680.0,0.24162231]
[1729898628793,0.66516131,65681.0,65680.0,0.24162231]
[1729898629067,0.177276,65670.0,65660.0,0.0175053]
[1729898629303,2.33925616,65670.0,65660.0,0.0175053]
[1729898629507,2.33690661,65670.0,65661.0,0.22657412]
[1729898629719,1.56575518,65670.0,65661.0,0.22657412]
[1729898629941,0.19004089,65670.0,65660.0,0.0175053]
[1729898630199,0.1637873,65670.0,65669.0,0.152978]
[1729898630377,0.1637873,65670.0,65669.0,0.0007]
[1729898630595,0.19504603,65670.0,65669.0,0.0007]
[1729898630799,0.16050381,65670.0,65669.0,0.0007]
[1729898631022,0.15550381,65670.0,65669.0,0.0007]
[1729898631248,0.54435393,65670.0,65669.0,0.0007]
[1729898631483,1.58075518,65670.0,65669.0,0.0007]
[1729898631695,1.71698186,65670.0,65669.0,0.0007]
[1729898631925,1.58403738,65670.0,65669.0,0.0007]
[1729898632153,0.17378629,65670.0,65669.0,0.0007]
[1729898632587,0.16878629,65670.0,65669.0,0.0007]
[1729898632829,0.33606229,65670.0,65669.0,0.0007]
[1729898633060,0.34106229,65670.0,65669.0,0.0007]
[1729898633303,1.74245984,65670.0,65669.0,0.0007]
[1729898633753,0.01,65661.0,65660.0,0.17422034]
[1729898633959,0.01,65654.0,65649.0,0.00156484]
[1729898634179,0.16050381,65651.0,65649.0,0.00156484]
[1729898634412,0.16050381,65651.0,65634.0,0.304718]
[1729898634413,0.01,65646.0,65645.0,0.20629027]
[1729898634661,0.52011663,65646.0,65645.0,0.00074006]
[1729898634890,1.13662749,65646.0,65645.0,0.00074006]
[1729898635121,0.00493606,65626.0,65625.0,7.62e-05]
[1729898635615,1.55767737,65638.0,65625.0,7.62e-05]
[1729898635616,0.00493606,65629.0,65625.0,7.62e-05]
[1729898635829,0.15050381,65629.0,65625.0,7.62e-05]
[1729898636035,0.15050381,65628.0,65625.0,7.62e-05]
[1729898636243,0.15543987,65628.0,65625.0,7.62e-05]
[1729898636460,0.005,65631.0,65627.0,0.23157412]
[1729898636719,0.22657412,65651.0,65640.0,0.2601]
[1729898636930,0.22657412,65651.0,65629.0,0.01]
[1729898636931,0.22657412,65661.0,65659.0,0.005]
[1729898637156,0.22657412,65669.0,65660.0,0.157299]
[1729898637398,0.22657412,65669.0,65658.0,0.304605]
[1729898637399,0.22657412,65684.0,65673.0,0.152269]
[1729898637617,0.58625088,65699.0,65680.0,0.284853]
[1729898637618,0.22657412,65699.0,65680.0,0.284853]
[1729898637880,0.22657412,65699.0,65690.0,0.304456]
[1729898638104,0.22657412,65715.0,65699.0,0.309414]
[1729898638359,0.22657412,65700.0,65699.0,0.157209]
[1729898638573,0.35967676,65706.0,65690.0,0.15223]
[1729898638784,0.35967676,65706.0,65681.0,0.30377412]
[1729898638785,0.35967676,65692.0,65691.0,0.22657412]
[1729898639224,0.35967676,65692.0,65673.0,0.22657412]
[1729898639225,0.005,65687.0,65673.0,0.22657412]
[1729898639434,0.22657412,65701.0,65673.0,0.22657412]
[1729898639435,0.005,65690.0,65680.0,0.22657412]
[1729898639661,0.25,65690.0,65686.0,0.22657412]
[1729898639883,1.25297537,65695.0,65673.0,0.22657412]
[1729898639884,0.35967676,65687.0,65673.0,0.22657412]
[1729898640093,0.395,65702.0,65686.0,0.304478]
[1729898640094,0.35967676,65702.0,65686.0,0.304478]
[1729898640324,0.35967676,65702.0,65682.0,0.22657412]
[1729898640325,0.01076165,65701.0,65692.0,0.0772]
[1729898640595,0.22657412,65715.0,65697.0,0.304424]
[1729898640806,0.22657412,65715.0,65692.0,0.0792]
[1729898640807,0.15050381,65714.0,65712.0,0.152177]
[1729898641041,0.22657412,65713.0,65701.0,0.005]
[1729898641260,0.58625088,65723.0,65704.0,0.005]
[1729898641485,0.58625088,65723.0,65675.0,0.35967676]
[1729898641486,0.35967676,65715.0,65700.0,0.005]
[1729898641698,0.15050381,65714.0,65702.0,0.22657412]
[1729898641907,0.35967676,65707.0,65694.0,0.22657412]
[1729898642118,0.35967676,65702.0,65694.0,0.22657412]
[1729898642528,0.15050381,65699.0,65687.0,0.1829]
[1729898642761,0.35967676,65695.0,65689.0,0.22657412]
[1729898643005,0.35967676,65695.0,65673.0,0.53611212]
[1729898643006,0.01078298,65694.0,65680.0,0.22657412]
[1729898643258,0.01078298,65694.0,65689.0,0.22657412]
[1729898643499,0.35967676,65702.0,65680.0,0.22657412]
[1729898643500,0.15050381,65693.0,65680.0,0.22657412]
[1729898643744,0.12550381,65693.0,65687.0,0.152235]
[1729898643950,0.35967676,65695.0,65687.0,0.152236]
[1729898644160,0.15050381,65694.0,65686.0,0.152237]
[1729898644438,0.15050381,65693.0,65682.0,0.22657412]
[1729898644641,0.22657412,65692.0,65674.0,0.309533]
[1729898644857,0.22657412,65692.0,65666.0,0.23657412]
[1729898644858,0.22657412,65692.0,65667.0,0.005]
[1729898644859,0.35967676,65680.0,65667.0,0.005]
[1729898645090,0.35967676,65680.0,65673.0,0.22657412]
[1729898645091,0.15050381,65679.0,65673.0,0.22657412]
[1729898645305,0.15050381,65679.0,65666.0,0.22657412]
[1729898645306,0.15050381,65679.0,65666.0,0.37885812]
[1729898645514,0.15050381,65679.0,65674.0,0.22657412]
[1729898645749,0.15050381,65679.0,65664.0,0.1824]
[1729898645959,0.35967676,65687.0,65668.0,0.005]
[1729898646170,0.35967676,65687.0,65667.0,0.22657412]
[1729898646171,0.22657412,65686.0,65676.0,0.157261]
[1729898646417,0.51018057,65687.0,65676.0,0.005]
[1729898646627,0.15050381,65686.0,65670.0,0.152276]
[1729898646853,0.15050381,65686.0,65675.0,0.152264]
[1729898647089,0.15050381,65686.0,65674.0,0.22657412]
[1729898647332,0.15050381,65686.0,65673.0,0.005]
[1729898647333,0.37707793,65686.0,65673.0,0.005]
[1729898647594,0.37707793,65686.0,65674.0,0.22657412]
[1729898647595,0.35967676,65679.0,65674.0,0.22657412]
[1729898647888,0.15050381,65678.0,65674.0,0.22657412]
[1729898648114,0.15050381,65678.0,65667.0,0.22657412]
[1729898648334,0.15050381,65678.0,65675.0,0.22657412]
[1729898648557,0.15050381,65678.0,65677.0,0.22657412]
[1729898648779,0.24097122,65697.0,65677.0,0.22657412]
[1729898648780,0.22657412,65697.0,65677.0,0.22657412]
[1729898649017,0.15050381,65695.0,65686.0,0.152239]
[1729898649284,0.001644,65700.0,65689.0,0.005]
[1729898649611,0.22657412,65698.0,65688.0,0.1824]
[1729898649790,0.001644,65700.0,65688.0,0.1824]
[1729898649791,0.15050381,65697.0,65688.0,0.1824]
[1729898649995,0.35967676,65696.0,65688.0,0.1824]
[1729898650208,0.15050381,65695.0,65688.0,0.1824]
[1729898650882,0.15050381,65695.0,65689.0,0.22657412]
[1729898651094,0.35967676,65690.0,65676.0,0.23157412]
[1729898651311,0.35967676,65682.0,65676.0,0.22657412]
[1729898651529,0.15050381,65689.0,65676.0,0.22657412]
[1729898651530,0.51018057,65689.0,65676.0,0.22657412]
[1729898651735,0.30273681,65689.0,65676.0,0.22657412]
[1729898651972,0.15050381,65689.0,65677.0,0.152258]
[1729898652199,0.15050381,65689.0,65676.0,0.22657412]
[1729898652423,0.15050381,65689.0,65682.0,0.005]
[1729898652632,0.35967676,65710.0,65685.0,0.005]
[1729898652859,0.23157412,65714.0,65682.0,0.01]
[1729898652860,0.37707793,65699.0,65688.0,0.005]
[1729898653092,0.22657412,65714.0,65690.0,0.005]
[1729898653093,0.37875012,65714.0,65690.0,0.005]
[1729898653315,0.22657412,65714.0,65691.0,0.005]
[1729898653538,0.01079658,65705.0,65693.0,0.005]
[1729898654383,0.22657412,65699.0,65693.0,0.005]
[1729898654602,0.22657412,65699.0,65666.0,0.35967676]
[1729898654603,0.35967676,65694.0,65684.0,0.005]
[1729898654817,0.15050381,65693.0,65685.0,0.22657412]
[1729898655040,0.15050381,65693.0,65672.0,0.1874]
[1729898655041,0.15050381,65693.0,65686.0,0.22657412]
[1729898655710,0.15050381,65693.0,65688.0,0.22657412]
[1729898656201,0.152211,65699.0,65674.0,0.51194276]
[1729898656202,0.001644,65700.0,65690.0,0.005]
[1729898656415,0.15214781,65700.0,65689.0,0.005]
[1729898656624,0.30271381,65699.0,65687.0,0.005]
[1729898656835,0.30271381,65699.0,65677.0,0.22657412]
[1729898656836,0.15050381,65699.0,65688.0,0.22657412]
[1729898657044,0.01079453,65698.0,65688.0,0.22657412]
[1729898657259,0.15050381,65697.0,65696.0,0.22657412]
[1729898657504,0.15050381,65697.0,65684.0,0.005]
[1729898657725,0.001644,65700.0,65674.0,0.22657412]
[1729898657726,0.152258,65678.0,65674.0,0.22657412]
[1729898657935,0.152264,65675.0,65674.0,0.22657412]
[1729898658139,0.152281,65668.0,65667.0,0.22657412]
[1729898658348,0.152281,65668.0,65659.0,0.22657412]
[1729898658350,0.152299,65660.0,65659.0,0.22657412]
[1729898658566,0.152299,65660.0,65644.0,0.22657412]
[1729898658567,0.152318,65652.0,65644.0,0.22657412]
[1729898658774,0.152318,65652.0,65627.0,0.40837412]
[1729898658775,0.007,65644.0,65627.0,0.23157412]
[1729898658986,0.007,65644.0,65627.0,0.22657412]
[1729898658987,0.152373,65628.0,65627.0,0.22657412]
[1729898659211,0.152378,65626.0,65625.0,7.62e-05]
[1729898659441,0.31366698,65626.0,65625.0,7.62e-05]
[1729898659717,0.31365049,65626.0,65625.0,7.62e-05]
[1729898659966,0.16127249,65626.0,65625.0,7.62e-05]
[1729898660201,0.22657412,65637.0,65625.0,7.62e-05]
[1729898660417,0.15050381,65636.0,65625.0,0.0050762]
[1729898660624,0.22657412,65648.0,65636.0,0.005]
[1729898660851,0.22657412,65648.0,65637.0,0.15550381]
[1729898660852,0.22657412,65641.0,65637.0,0.15550381]
[1729898661078,0.22657412,65648.0,65647.0,0.005]
[1729898661302,0.005,65645.0,65640.0,0.005]
[1729898661514,0.005,65635.0,65631.0,0.22657412]
[1729898661729,0.35967676,65632.0,65631.0,0.22657412]
[1729898661960,0.51018057,65632.0,65625.0,7.62e-05]
[1729898662174,0.15050381,65631.0,65625.0,7.62e-05]
[1729898662622,0.51018057,65631.0,65627.0,0.005]